bitfinex/quotes_ETHUSD_20241129
["timestamp","ask_amount","ask_price","bid_price","bid_amount"]
[1732894884235,1.021,3621.3,3620.3,3.76068]
[1732894884450,1.021,3621.3,3621.0,2.76166]
[1732894884735,0.9845,3621.7,3620.4,0.376068]
[1732894884924,0.9845,3621.7,3621.2,2.76146]
[1732894885538,3.74563,3621.7,3621.1,2.76158]
[1732894885906,0.9845,3621.7,3621.1,2.76158]
[1732894886307,0.55,3621.6,3621.2,2.7615]
[1732894886905,0.9845,3621.7,3620.4,2.76212]
[1732894887115,0.1570132,3621.8,3621.4,2.76135]
[1732894888452,0.55,3621.7,3621.0,0.9541]
[1732894888684,0.55,3621.7,3621.4,2.76134]
[1732894889539,0.55,3621.7,3621.5,2.76127]
[1732894891501,0.55,3621.7,3621.3,2.76143]
[1732894891779,0.55,3621.7,3621.0,0.9541]
[1732894891780,0.55,3621.1,3620.6,2.76192]
[1732894891952,0.55,3621.1,3620.2,0.9856]
[1732894892154,0.55,3621.3,3620.8,2.76181]
[1732894892374,2.76075,3622.2,3619.6,0.02761786]
[1732894892375,0.55,3621.5,3621.1,2.76156]
[1732894892549,0.55,3621.5,3620.9,0.276181]
[1732894892550,0.55,3621.7,3621.2,2.76146]
[1732894892753,0.55,3621.7,3621.3,2.76142]
[1732894893167,0.55,3621.7,3621.3,2.76141]
[1732894893375,0.55,3621.7,3621.2,2.76144]
[1732894893546,0.55,3621.7,3620.9,2.76174]
[1732894893878,0.55,3621.7,3621.2,2.76144]
[1732894894082,0.55,3621.7,3621.3,2.76139]
[1732894894552,0.55,3621.7,3620.8,3.9811]
[1732894894763,0.55,3621.7,3621.6,2.76121]
[1732894895179,0.7070132,3621.8,3621.6,2.76121]
[1732894895555,0.7070132,3621.8,3621.3,3.0]
[1732894895741,0.7070132,3621.8,3621.5,2.76128]
[1732894895941,0.7070132,3621.8,3621.4,2.76136]
[1732894896140,0.7070132,3621.8,3621.5,2.76128]
[1732894896579,0.7070132,3621.8,3621.4,2.76135]
[1732894896779,0.7070132,3621.8,3621.5,2.76128]
[1732894897143,0.7070132,3621.8,3621.7,2.76113]
[1732894897349,0.1570132,3621.8,3621.7,2.76113]
[1732894897592,0.1570132,3621.8,3621.7,3.313371]
[1732894898774,0.1570132,3621.8,3621.4,2.76135]
[1732894898982,0.1570132,3621.8,3621.5,2.76127]
[1732894899351,0.1570132,3621.8,3621.3,6.337559]
[1732894899878,0.1570132,3621.8,3621.1,3.74058]
[1732894900064,2.9180732,3621.8,3621.3,2.76138]
[1732894900384,0.1570132,3621.8,3621.3,2.76141]
[1732894900691,0.55,3621.7,3621.2,2.7615]
[1732894901081,0.55,3621.7,3621.3,2.76142]
[1732894901262,0.55,3621.7,3621.1,0.979]
[1732894901461,0.55,3621.7,3621.0,2.76164]
[1732894901462,1.5379,3621.7,3621.0,2.76164]
[1732894901665,1.5379,3621.7,3620.7,0.9441]
[1732894901666,0.55,3621.3,3620.8,2.7618]
[1732894901864,0.55,3621.3,3620.9,2.76174]
[1732894902092,0.55,3621.5,3621.0,2.76165]
[1732894902690,3.31127,3621.6,3620.9,2.76173]
[1732894903190,0.55,3621.6,3620.7,0.9441]
[1732894903352,0.55,3621.4,3620.9,2.76173]
[1732894903734,2.76139,3621.4,3620.8,2.7618]
[1732894903938,0.55,3621.3,3620.6,3.0]
[1732894904104,0.55,3620.9,3620.0,1.0076]
[1732894904299,0.55,3620.9,3620.2,2.76223]
[1732894904503,0.55,3620.9,3620.4,2.76206]
[1732894904716,0.55,3620.9,3619.6,1.0076]
[1732894904915,0.55,3620.2,3619.6,1.0076]
[1732894905250,0.9547,3621.0,3619.6,1.0076]
[1732894905251,0.9547,3621.0,3620.5,2.76203]
[1732894905549,0.55,3620.9,3620.4,2.76211]
[1732894905695,0.55,3620.9,3620.3,2.76218]
[1732894905899,0.55,3620.9,3619.6,3.77033]
[1732894905900,0.55,3620.9,3619.6,1.0076]
[1732894906098,0.55,3620.9,3620.3,2.76219]
[1732894906401,0.55,3620.9,3620.4,2.7621]
[1732894906833,0.55,3620.9,3620.5,2.76202]
[1732894907324,1.0064,3621.7,3621.1,2.76154]
[1732894907537,1.0064,3621.7,3620.9,2.76172]
[1732894907747,3.76754,3621.7,3620.5,0.52224465]
[1732894907915,3.76754,3621.7,3621.1,2.76157]
[1732894908110,3.76754,3621.7,3621.0,2.76164]
[1732894908111,1.0064,3621.7,3620.5,0.52224465]
[1732894908317,1.0064,3621.7,3621.1,2.76154]
[1732894908671,1.0064,3621.7,3620.6,0.45263447]
[1732894908858,0.55,3621.6,3621.2,2.76151]
[1732894909020,1.0064,3621.7,3620.8,3.0]
[1732894909213,1.0064,3621.7,3620.8,5.76178]
[1732894909538,0.1570132,3621.8,3621.0,3.70024]
[1732894909743,0.1570132,3621.8,3621.5,2.76124]
[1732894910041,0.1570132,3621.8,3621.7,2.76113]
[1732894911661,0.1570132,3621.8,3621.7,5.76113]
[1732894913664,0.1570132,3621.8,3621.7,6.76334034]
[1732894913958,0.1570132,3621.8,3621.7,7.68818603]
[1732894918153,3.2e-06,3621.8,3621.7,7.68818603]
[1732894923078,3.2e-06,3621.8,3621.7,3.71358603]
[1732894923260,3.2e-06,3621.8,3621.7,2.76113]
[1732894924147,3.2e-06,3621.8,3621.7,3.77343]
[1732894924457,3.2e-06,3621.8,3621.7,6.77343]
[1732894925971,3.2e-06,3621.8,3621.7,3.77343]
[1732894926309,3.2e-06,3621.8,3621.7,2.76113]
[1732894926571,3.2e-06,3621.8,3621.7,3.313365]
[1732894926725,3.2e-06,3621.8,3621.7,3.34097078]
[1732894926928,3.2e-06,3621.8,3621.7,3.313365]
[1732894927666,3.2e-06,3621.8,3621.7,6.313365]
[1732894927867,3.2e-06,3621.8,3621.7,7.595165]
[1732894930691,0.08623226,3623.1,3623.0,2.76014]
[1732894930850,1.0113,3623.9,3623.8,2.75953]
[1732894931292,1.0113,3624.3,3624.2,2.75922]
[1732894932485,0.08620661,3624.9,3624.2,2.75922]
[1732894932659,1.0234,3624.8,3624.7,2.7588]
[1732894933088,3.03033272,3625.9,3623.8,2.75947]
[1732894933089,1.0234,3625.3,3623.9,6.16989089]
[1732894933254,1.0234,3625.3,3624.0,0.99688609]
[1732894933456,1.0234,3625.3,3625.2,2.75846]
[1732894933962,1.0449,3625.7,3625.3,2.75839]
[1732894935268,2.75759,3626.4,3625.3,2.75839]
[1732894935269,0.20408194,3626.2,3625.3,0.961]
[1732894935466,1.33045244,3626.9,3626.3,2.75756]
[1732894935677,1.0402,3626.9,3626.3,2.75763]
[1732894935894,1.0402,3626.9,3626.5,2.75744]
[1732894936081,1.0402,3626.9,3625.6,3.0]
[1732894936279,1.0402,3626.9,3625.7,0.36889351]
[1732894936481,1.0402,3626.9,3625.8,5.75801]
[1732894936724,1.0402,3626.9,3625.8,3.0]
[1732894937018,0.55,3626.8,3626.4,2.75747]
[1732894937199,0.55,3626.8,3626.7,2.75732]
[1732894937373,0.9845,3627.2,3626.1,0.9989]
[1732894937711,0.9845,3627.2,3626.3,2.75763]
[1732894937871,2.75695,3627.2,3626.1,2.75778]
[1732894938073,0.9985,3626.9,3625.6,5.7581]
[1732894938281,0.9985,3626.9,3626.7,2.7573]
[1732894938513,0.9985,3626.9,3626.5,2.75746]
[1732894938818,0.9985,3626.9,3626.7,2.75725]
[1732894939115,0.9985,3626.9,3626.8,2.75725]
[1732894939897,1.0176,3627.6,3627.1,2.75701]
[1732894940105,1.0176,3627.6,3626.3,2.75759]
[1732894940416,1.0176,3627.6,3626.4,2.75754]
[1732894940417,2.75695,3627.2,3626.4,2.75754]
[1732894940712,3.16989089,3627.7,3625.1,3.16989089]
[1732894940713,1.0376,3627.1,3625.5,1.031]
[1732894940874,1.0376,3627.1,3626.6,2.75734]
[1732894941614,0.55,3627.0,3625.6,0.378938]
[1732894941784,0.55,3627.0,3626.6,2.7574]
[1732894941985,0.55,3627.0,3625.6,0.378938]
[1732894942183,0.55,3627.0,3625.7,2.75808]
[1732894942415,0.55,3627.0,3626.2,2.75765]
[1732894942620,0.55,3626.8,3626.0,2.75783]
[1732894942912,0.55,3626.8,3625.9,2.75793]
[1732894943228,1.0376,3627.1,3625.8,5.51602]
[1732894943377,0.9558,3627.9,3627.0,2.75709]
[1732894943572,3.91506936,3627.9,3626.6,2.7574]
[1732894943779,0.9558,3627.9,3626.6,2.7574]
[1732894944004,3.71223,3627.9,3627.2,2.75687]
[1732894944217,0.9558,3627.9,3627.5,2.75671]
[1732894944573,0.9558,3627.9,3626.9,0.02756728]
[1732894944780,0.9558,3627.9,3627.7,2.75649]
[1732894945086,0.9558,3627.9,3626.4,0.9735]
[1732894945087,0.9558,3627.9,3627.8,2.75649]
[1732894945288,0.00549136,3628.5,3626.7,5.95477579]
[1732894945289,1.035,3628.4,3628.3,2.75611]
[1732894945625,1.035,3628.4,3628.1,2.75625]
[1732894945830,1.035,3628.4,3627.9,2.75637]
[1732894946030,1.035,3628.4,3628.0,2.75633]
[1732894946185,1.035,3628.4,3627.8,2.75641]
[1732894946529,1.035,3628.4,3628.0,2.75628]
[1732894946708,1.035,3628.4,3628.1,2.75621]
[1732894946896,1.035,3628.4,3628.0,2.75633]
[1732894947085,0.00549136,3628.5,3627.3,0.9685]
[1732894947289,0.00549136,3628.5,3628.3,2.75608]
[1732894947618,0.00549136,3628.5,3628.3,2.7561]
[1732894947824,0.00549136,3628.5,3628.4,2.75603]
[1732894950538,0.00549136,3628.5,3628.4,3.30725]
[1732894951745,0.00549136,3628.5,3628.4,2.75603]
[1732894952423,0.00549136,3628.5,3628.0,2.75632]
[1732894952625,0.00549136,3628.5,3627.6,2.75663]
[1732894952828,0.55549136,3628.5,3627.4,0.991]
[1732894953013,0.55549136,3628.5,3628.0,2.75633]
[1732894953214,0.55549136,3628.5,3628.4,2.75603]
[1732894953411,0.00549136,3628.5,3628.2,2.75614]
[1732894953628,0.00549136,3628.5,3628.4,2.75603]
[1732894954254,0.00549136,3628.5,3628.4,3.307247]
[1732894956392,0.00549136,3628.5,3628.4,2.75603]
[1732894957118,0.00549136,3628.5,3628.4,3.70713]
[1732894959250,0.00549136,3628.5,3628.4,6.70713]
[1732894962341,0.00549136,3628.5,3628.4,2.75603]
[1732894962579,0.20932056,3628.5,3628.0,0.9918]
[1732894962783,0.2038292,3628.4,3628.3,2.7561]
[1732894963349,0.2038292,3628.4,3628.2,2.75613]
[1732894963548,0.00549136,3628.5,3628.4,2.75603]
[1732894963939,0.20951408,3628.5,3628.3,2.7561]
[1732894964082,0.20951408,3628.5,3628.1,2.75621]
[1732894964292,0.20402272,3628.4,3628.1,3.344993]
[1732894964447,0.00549136,3628.5,3628.4,2.75603]
[1732894964649,0.20967653,3628.5,3628.4,2.75603]
[1732894968072,1.25147653,3628.5,3628.2,2.75618]
[1732894968393,0.20418517,3628.4,3628.3,2.75611]
[1732894969001,0.20418517,3628.4,3628.3,3.031721]
[1732894969161,0.20418517,3628.4,3628.3,6.031721]
[1732894969514,0.00549136,3628.5,3628.4,2.75603]
[1732894969796,0.00549136,3628.5,3628.4,6.73613]
[1732894970003,1.36e-06,3628.5,3628.4,7.9885351]
[1732894970694,1.36e-06,3628.5,3628.4,8.2649351]
[1732894971700,0.1570132,3629.1,3629.0,2.75558]
[1732894972077,0.1570132,3629.1,3629.0,6.74678]
[1732894972893,0.1570132,3629.1,3629.0,5.75558]
[1732894973084,0.1570132,3629.1,3629.0,7.733325]
[1732894975234,0.1570132,3629.1,3629.0,6.709125]
[1732894975360,0.3621553,3629.1,3629.0,2.75558]
[1732894976777,0.3621553,3629.1,3628.6,2.75587]
[1732894976979,0.2051421,3629.0,3628.6,2.75587]
[1732894977177,0.2051421,3628.9,3628.6,2.75587]
[1732894977374,0.2051421,3628.8,3628.6,2.75587]
[1732894977580,0.2051421,3628.7,3628.6,2.75587]
[1732894977904,1.0064,3628.6,3628.0,2.75632]
[1732894978101,0.2051421,3628.5,3628.3,2.7561]
[1732894978265,0.2051421,3628.5,3628.1,2.75622]
[1732894978464,0.2051421,3628.4,3628.1,2.75622]
[1732894978805,0.2051421,3628.3,3628.0,3.031952]
[1732894979102,0.2051421,3628.2,3628.1,2.75624]
[1732894979608,0.2051421,3628.2,3627.8,2.75649]
[1732894979900,0.2051421,3628.1,3627.8,2.75649]
[1732894980108,0.2051421,3628.0,3627.8,2.75649]
[1732894980404,0.2051421,3627.9,3627.8,3.607802]
[1732894980708,0.2051421,3627.9,3627.0,1.0046]
[1732894980709,1.0394,3627.8,3626.8,2.75719]
[1732894980918,2.75672,3627.5,3626.6,2.7574]
[1732894981215,0.205024,3627.7,3627.5,2.75671]
[1732894981360,0.20498997,3627.6,3627.0,2.75708]
[1732894981564,0.20498997,3627.5,3627.4,2.75679]
[1732894982370,1.0394,3627.8,3627.1,0.275708]
[1732894982676,0.20487098,3627.7,3627.2,2.75692]
[1732894982879,0.20487098,3627.6,3626.7,2.75732]
[1732894983117,0.20487098,3627.5,3627.1,2.75696]
[1732894983285,1.0394,3627.8,3627.1,2.75696]
[1732894983286,0.20487098,3627.4,3627.1,2.75696]
[1732894983607,1.0394,3627.8,3627.1,2.75697]
[1732894983805,0.20479008,3627.7,3627.1,0.275697]
[1732894984109,0.20479008,3627.6,3626.7,0.0275675]
[1732894984269,0.20479008,3627.6,3627.3,2.75687]
[1732894984582,1.0394,3627.8,3627.3,2.75687]
[1732894984766,0.20472801,3627.7,3627.2,2.75693]
[1732894984971,0.20472801,3627.6,3627.2,2.75693]
[1732894985207,1.0394,3627.8,3627.2,2.75693]
[1732894985412,0.20468782,3627.7,3627.4,2.75677]
[1732894985572,1.0394,3627.8,3627.2,2.75693]
[1732894985773,0.20466943,3627.7,3627.2,2.75693]
[1732894985980,1.0394,3627.8,3627.2,2.75693]
[1732894986208,0.20468449,3627.7,3627.2,2.75693]
[1732894986435,1.0394,3627.8,3627.2,2.75693]
[1732894987417,3.7959,3627.8,3627.2,2.75693]
[1732894987869,2.75672,3627.5,3626.6,2.75733]
[1732894988071,1.0337,3627.6,3626.6,2.75733]
[1732894988271,2.75685,3627.4,3626.7,2.75728]
[1732894988504,3.30673,3627.5,3626.8,2.75723]
[1732894988708,3.30673,3627.5,3626.6,2.75733]
[1732894988709,0.55,3627.5,3626.9,2.75716]
[1732894988867,0.55,3627.5,3626.5,0.3997]
[1732894989205,1.0337,3627.6,3627.2,2.75688]
[1732894989379,2.75634,3628.0,3627.2,2.75688]
[1732894989590,1.0337,3628.0,3627.8,2.75646]
[1732894989798,1.0337,3628.0,3627.0,1.0179]
[1732894989970,1.0337,3628.0,3627.4,2.75678]
[1732894990188,3.79009,3628.0,3627.2,2.75689]
[1732894990396,3.30642,3627.9,3627.2,2.75689]
[1732894990624,0.55,3627.5,3626.8,2.75724]
[1732894990785,0.9985,3627.4,3626.9,2.75714]
[1732894991531,0.9985,3627.4,3627.2,2.7569]
[1732894991698,0.9985,3627.4,3627.3,2.75687]
[1732894991899,0.9985,3627.4,3627.3,3.308247]
[1732894992105,0.9985,3628.5,3627.3,0.5789441]
[1732894992399,0.9985,3628.5,3628.4,2.75603]
[1732894992612,0.9985,3628.5,3627.3,0.551377]
[1732894992613,4.9985,3628.5,3627.3,0.551377]
[1732894992815,4.9985,3628.5,3628.4,2.75603]
[1732894992816,0.9985,3628.5,3628.4,2.75603]
[1732894993511,1.0425,3629.0,3628.5,2.75592]
[1732894993833,1.0425,3629.0,3628.7,2.75575]
[1732894994123,1.0425,3629.0,3628.9,2.75565]
[1732894994331,5.0425,3629.0,3628.9,2.75565]
[1732894994839,4.0,3629.0,3628.9,3.306795]
[1732894995141,0.9544,3630.5,3628.9,0.551145]
[1732894995302,0.9544,3630.5,3630.1,2.75469]
[1732894995502,4.0,3630.2,3630.1,2.75469]
[1732894996033,4.0,3630.2,3630.0,2.75481]
[1732894996531,0.9544,3630.5,3629.9,2.75486]
[1732894996701,0.9544,3630.5,3630.1,2.75467]
[1732894996907,0.9544,3630.5,3629.9,2.75486]
[1732894997319,0.9544,3630.5,3629.4,3.79716]
[1732894997524,3.16989089,3630.2,3629.3,2.75532]
[1732894997740,3.16989089,3629.8,3628.6,2.75581]
[1732894997938,3.16989089,3629.8,3628.9,2.75565]
[1732894997939,0.55,3629.7,3628.9,2.75565]
[1732894998123,0.55,3629.7,3629.0,2.75556]
[1732894998441,0.55,3629.7,3629.1,2.7555]
[1732894998604,0.55,3629.7,3628.3,2.75605]
[1732894998605,0.55,3630.0,3628.2,1.0081]
[1732894998805,0.55,3630.0,3629.5,2.75513]
[1732894999005,0.55,3630.0,3629.4,2.7552]
[1732894999752,0.55,3630.0,3629.5,2.75516]
[1732895000046,0.55,3630.0,3629.6,2.75511]
[1732895001845,0.55,3630.0,3629.7,2.75502]
[1732895002149,0.9457,3630.1,3629.8,2.7549]
[1732895002448,0.9457,3630.1,3629.9,2.75488]
[1732895003745,0.9457,3630.1,3629.7,2.755]
[1732895004044,3.16989089,3629.9,3628.8,2.75573]
[1732895004248,0.55,3630.0,3628.9,0.377173]
[1732895004447,3.30483,3630.0,3629.2,2.75536]
[1732895004744,0.55,3630.0,3629.3,2.75534]
[1732895004962,0.55,3630.0,3629.4,2.75522]
[1732895005655,0.9457,3630.1,3629.4,2.75522]
[1732895005656,0.9457,3630.1,3629.6,2.75506]
[1732895005843,0.9457,3630.1,3629.7,2.75501]
[1732895006042,0.9457,3630.1,3629.6,0.551033]
[1732895006251,2.75444,3630.5,3629.6,0.551033]
[1732895006252,0.55,3630.5,3629.7,2.75504]
[1732895006459,2.75462,3630.3,3629.7,2.75504]
[1732895006668,2.75495,3629.9,3629.2,2.75542]
[1732895006842,2.75482,3630.0,3629.3,2.75531]
[1732895007172,2.75495,3629.9,3629.3,2.75531]
[1732895007672,2.75501,3629.8,3628.7,1.016]
[1732895007827,2.75501,3629.8,3629.0,2.75551]
[1732895008030,2.75501,3629.8,3628.4,2.75598]
[1732895008031,2.75533,3629.4,3628.6,2.75581]
[1732895008267,2.75559,3629.0,3628.2,1.0284]
[1732895008575,3.7399,3629.1,3628.5,2.75594]
[1732895008867,1.017,3629.8,3628.5,0.9646]
[1732895009037,2.75525,3629.5,3628.8,2.75572]
[1732895009239,0.55,3629.7,3628.7,2.75576]
[1732895009424,2.75542,3629.3,3628.4,2.75603]
[1732895009630,2.75542,3629.3,3628.6,2.75582]
[1732895009829,0.55,3629.7,3628.3,5.890565]
[1732895009830,1.0367,3628.9,3628.3,5.890565]
[1732895010070,1.0367,3628.9,3628.3,2.75605]
[1732895010266,1.0367,3628.9,3628.5,2.75595]
[1732895010674,1.0367,3629.3,3628.7,2.7558]
[1732895010828,4.34212,3629.3,3628.7,2.75579]
[1732895011931,2.75545,3629.2,3628.5,2.75589]
[1732895012225,1.5867,3629.3,3627.6,3.2764]
[1732895012226,2.75566,3628.9,3628.2,2.75612]
[1732895012431,1.0367,3629.3,3627.8,0.2764]
[1732895012661,2.75571,3628.9,3628.2,2.75616]
[1732895012934,2.75589,3628.6,3628.0,2.75629]
[1732895013126,0.9762,3628.8,3627.6,0.2764]
[1732895013369,0.9762,3628.8,3628.3,2.7561]
[1732895013866,0.9762,3628.8,3628.0,2.75633]
[1732895014072,0.9762,3628.8,3628.3,2.7561]
[1732895014448,0.9762,3628.8,3627.8,0.2764]
[1732895014627,0.9762,3628.8,3628.3,2.75609]
[1732895014832,0.9762,3628.8,3627.8,0.2764]
[1732895015054,0.9762,3628.8,3628.5,2.75593]
[1732895015259,0.9762,3628.8,3627.9,0.02755954]
[1732895015476,0.9762,3628.8,3628.4,2.75603]
[1732895015775,0.9762,3628.8,3627.1,4.05786]
[1732895015776,2.75595,3628.5,3627.1,4.05786]
[1732895015980,2.75646,3627.9,3626.6,1.0245]
[1732895016277,2.7564,3628.0,3627.1,2.75696]
[1732895016437,2.75641,3628.0,3627.3,2.75685]
[1732895016636,3.73826,3627.9,3627.2,2.75693]
[1732895016830,3.73826,3627.9,3627.1,2.75701]
[1732895016831,0.9818,3627.9,3627.3,2.75682]
[1732895017442,0.9818,3627.9,3627.3,2.75684]
[1732895017688,0.9818,3627.9,3627.5,2.75671]
[1732895017942,0.9818,3627.9,3627.3,3.032544]
[1732895018166,0.9818,3627.9,3627.4,2.75678]
[1732895018760,3.73823,3627.9,3627.2,2.75694]
[1732895018957,3.73821,3627.9,3627.0,2.75704]
[1732895019272,3.73821,3627.9,3626.8,2.75722]
[1732895019273,3.73821,3627.9,3626.6,3.78185]
[1732895019576,3.73821,3627.9,3627.3,2.75686]
[1732895019948,0.9818,3627.9,3627.1,2.75696]
[1732895020237,2.75665,3627.6,3627.0,2.75703]
[1732895020787,3.73823,3627.9,3627.2,2.75689]
[1732895020969,2.7567,3627.6,3626.7,0.653934]
[1732895021140,2.7567,3627.6,3627.0,2.75708]
[1732895021341,0.9818,3627.9,3627.1,2.75701]
[1732895021543,2.75657,3627.7,3627.1,2.75701]
[1732895021963,2.75657,3627.7,3626.9,2.75711]
[1732895022248,2.75657,3627.7,3627.1,2.75697]
[1732895022787,2.75657,3627.7,3626.9,2.75711]
[1732895022943,0.9818,3627.9,3626.9,0.653891]
[1732895023147,0.9818,3627.9,3627.3,2.7568]
[1732895024195,3.73822,3627.9,3627.3,2.7568]
[1732895025287,3.73822,3627.9,3627.2,2.75693]
[1732895025463,2.7565,3627.8,3627.2,2.75693]
[1732895025660,2.75691,3627.3,3626.6,2.75735]
[1732895025877,0.9809,3627.2,3627.0,2.75705]
[1732895026691,0.9809,3627.2,3626.8,2.75722]
[1732895027054,0.9809,3627.2,3626.9,2.75711]
[1732895027255,0.9809,3627.2,3627.0,2.75709]
[1732895027683,0.9809,3627.2,3626.8,2.75721]
[1732895028218,3.77095,3627.6,3626.9,2.75715]
[1732895028518,2.75678,3627.5,3626.8,2.75721]
[1732895029317,2.75678,3627.5,3626.9,2.75716]
[1732895029515,1.0143,3627.6,3626.8,2.75721]
[1732895029805,2.75679,3627.4,3626.9,2.75711]
[1732895030024,2.75687,3627.3,3626.8,2.75724]
[1732895030197,1.0143,3627.6,3626.6,0.275735]
[1732895030366,2.75677,3627.5,3626.8,2.75725]
[1732895030566,2.75677,3627.5,3626.9,2.75716]
[1732895030870,2.75677,3627.5,3626.7,2.75727]
[1732895031102,2.75691,3627.3,3626.7,2.75727]
[1732895031369,1.0143,3627.6,3626.8,2.75723]
[1732895031370,2.75681,3627.4,3626.8,2.75723]
[1732895032214,2.7568,3627.4,3626.8,2.75723]
[1732895032415,2.7568,3627.4,3626.5,2.75741]
[1732895032588,2.7568,3627.4,3625.9,2.75789]
[1732895032589,2.75733,3626.7,3626.1,2.75773]
[1732895033221,2.75717,3626.9,3626.0,2.75785]
[1732895033222,0.9853,3626.5,3626.0,2.75785]
[1732895033919,0.9853,3626.5,3626.0,3.309433]
[1732895034068,0.9853,3626.5,3626.1,2.75772]
[1732895034275,0.9853,3626.5,3626.0,3.309433]
[1732895034276,0.9853,3626.5,3626.3,2.75763]
[1732895034803,0.9853,3626.5,3626.0,3.309433]
[1732895035007,0.9853,3626.5,3625.5,3.72767]
[1732895035207,0.9853,3626.5,3626.2,2.7577]
[1732895035443,0.9853,3626.5,3625.9,2.75786]
[1732895035757,0.9853,3626.5,3626.1,2.75772]
[1732895035955,0.9853,3626.5,3625.5,0.9695]
[1732895035956,0.9853,3626.5,3625.8,2.75795]
[1732895036161,0.9853,3626.5,3625.3,0.2764]
[1732895036454,0.9853,3626.5,3625.6,2.75812]
[1732895036638,2.75763,3626.3,3625.8,2.75796]
[1732895036956,0.9853,3626.5,3625.2,1.0046]
[1732895037159,0.9853,3626.5,3626.1,2.75777]
[1732895037356,0.9853,3626.5,3625.9,2.75792]
[1732895037357,0.9853,3626.5,3626.2,2.7577]
[1732895037861,0.9853,3626.5,3625.9,2.7579]
[1732895038018,0.9853,3626.5,3626.1,2.75776]
[1732895038630,0.9853,3626.5,3625.3,0.55]
[1732895038836,0.9853,3626.5,3626.2,2.75769]
[1732895039074,0.9853,3626.5,3625.4,3.45546]
[1732895039235,3.74278,3626.5,3625.9,2.75786]
[1732895039434,2.75757,3626.4,3625.8,2.758]
[1732895039737,3.74278,3626.5,3626.0,2.75783]
[1732895040047,2.75755,3626.4,3625.8,2.75796]
[1732895040251,0.9853,3626.5,3625.6,2.75811]
[1732895040557,2.75768,3626.3,3625.6,2.75811]
[1732895040765,2.75777,3626.2,3625.4,2.75829]
[1732895041069,0.9948,3625.9,3625.3,2.75837]
[1732895041217,0.99297313,3625.9,3625.3,2.75831]
[1732895041658,2.75802,3625.8,3625.1,2.75848]
[1732895041858,5.51609,3625.8,3624.9,2.75867]
[1732895042063,2.75802,3625.8,3625.1,2.75853]
[1732895042421,2.75802,3625.8,3625.2,2.75845]
[1732895042632,2.75801,3625.8,3625.2,2.75845]
[1732895043848,0.99297313,3625.9,3625.3,2.75833]
[1732895044256,3.75092313,3625.9,3625.2,2.75845]
[1732895044628,2.75801,3625.8,3625.2,2.75845]
[1732895044825,0.99297313,3625.9,3625.3,2.75838]
[1732895045032,0.99297313,3625.9,3625.4,2.7583]
[1732895045324,0.99297313,3625.9,3625.6,2.75811]
[1732895045560,0.99297313,3625.9,3625.5,2.75822]
[1732895045764,2.75854,3625.1,3624.4,2.75907]
[1732895046060,0.994,3625.0,3624.5,0.275907]
[1732895046221,3.6617491,3625.0,3624.1,0.28817207]
[1732895046418,6.4203991,3625.0,3624.0,2.75932]
[1732895046619,2.75869,3624.9,3624.0,2.75932]
[1732895046849,2.75886,3624.7,3623.5,2.75971]
[1732895047058,3.6617491,3625.0,3623.6,0.373361]
[1732895047230,2.75906,3624.5,3623.9,2.75939]
[1732895047436,2.75875,3624.9,3624.1,2.75923]
[1732895047959,3.6617491,3625.0,3623.4,0.9739]
[1732895048154,2.75904,3624.5,3623.8,2.75951]
[1732895048477,2.75869,3624.9,3624.0,2.75937]
[1732895048676,0.994,3625.0,3623.9,0.551913]
[1732895048969,2.75894,3624.6,3624.0,2.75937]
[1732895049175,0.994,3625.0,3623.9,0.551913]
[1732895049342,2.75883,3624.8,3624.0,2.75936]
[1732895049542,2.75884,3624.7,3623.8,2.75951]
[1732895049872,2.7591,3624.4,3623.8,2.75951]
[1732895050074,1.0274,3624.2,3623.6,2.75966]
[1732895050230,3.78668,3624.2,3623.6,2.75966]
[1732895050427,1.0274,3624.2,3623.6,2.75966]
[1732895050657,1.0274,3624.2,3623.6,0.649342]
[1732895050826,1.0274,3624.2,3623.8,2.75947]
[1732895051394,1.0274,3624.2,3623.6,2.75968]
[1732895051525,1.0274,3624.2,3623.4,0.9739]
[1732895051722,1.0274,3624.2,3623.1,1.0129]
[1732895052026,1.0274,3624.2,3623.7,2.75954]
[1732895052828,3.78664,3624.2,3623.3,2.75989]
[1732895053072,1.0274,3624.2,3623.7,2.75959]
[1732895053682,2.7593,3624.1,3623.5,2.75974]
[1732895053977,1.0274,3624.2,3623.3,0.68211569]
[1732895053978,1.0274,3624.2,3623.7,2.7596]
[1732895054241,1.0111,3624.6,3624.0,2.75937]
[1732895054402,1.0111,3624.6,3623.3,0.68211569]
[1732895054547,2.75912,3624.4,3623.1,4.0129]
[1732895054895,3.77002,3624.6,3623.1,4.0129]
[1732895055207,2.7591,3624.4,3623.8,2.75952]
[1732895055354,1.0247,3624.3,3623.8,2.75952]
[1732895055859,2.75923,3624.2,3623.6,2.75963]
[1732895056062,1.0247,3624.3,3623.7,2.7596]
[1732895056387,3.78388,3624.3,3623.7,2.7596]
[1732895056761,1.0247,3624.3,3623.0,0.2882869]
[1732895056972,2.75936,3624.1,3623.3,2.75985]
[1732895057287,2.75936,3624.1,3623.5,2.75975]
[1732895057589,3.78386,3624.3,3623.3,2.75985]
[1732895057885,3.78386,3624.3,3623.4,2.75982]
[1732895058103,2.75937,3624.1,3623.1,2.76001]
[1732895058395,4.18180829,3624.3,3623.1,2.76001]
[1732895058611,2.75939,3624.0,3623.4,2.75979]
[1732895058799,2.75939,3624.0,3623.2,2.75999]